fUSD/lending_fUSD_20240203
["ID","MTS","AMOUNT","RATE_DAILY","PERIOD"]
[313228979,1706976640104,-500.0,0.00022799,2]
[313228982,1706976640114,-500.0,0.00022799,2]
[313228983,1706976640123,-589.12085068,0.00022799,2]
[313228985,1706976640132,-623.78,0.00022799,2]
[313228987,1706976640142,-500.0,0.00022799,2]
[313228989,1706976640152,-500.0,0.00022799,2]
[313228992,1706976640161,-500.0,0.00022799,2]
[313228994,1706976640171,-500.0,0.00022799,2]
[313228995,1706976640180,-500.0,0.00022799,2]
[313228998,1706976640190,-500.0,0.00022799,2]
[313229000,1706976640200,-500.0,0.00022799,2]
[313229002,1706976640209,-500.0,0.00022799,2]
[313229004,1706976640218,-500.0,0.00022799,2]
[313229006,1706976640227,-500.0,0.00022799,2]
[313229008,1706976640236,-500.0,0.00022799,2]
[313229010,1706976640245,-500.0,0.00022799,2]
[313229012,1706976640255,-550.71,0.00022799,2]
[313229013,1706976640264,-500.0,0.00022799,2]
[313229016,1706976640274,-584.85363771,0.00022799,2]
[313229018,1706976640284,-1769.02,0.00022799,2]
[313229020,1706976640295,-500.0,0.00022799,2]
[313229022,1706976640304,-500.0,0.00022799,2]
[313229024,1706976640315,-500.0,0.00022799,2]
[313229026,1706976640324,-635.04,0.00022799,2]
[313229027,1706976640334,-565.76161464,0.00022799,2]
[313229030,1706976640343,-726.76,0.000228,2]
[313229032,1706976640353,-3025.33,0.000228,2]
[313229034,1706976640362,-507454.32813161,0.000228,2]
[313229036,1706976640376,-161.06655705,0.000228,2]
[313229038,1706976640386,-600.0,0.000228,8]
[313229039,1706976640396,-201.67,0.00022816,2]
[313229041,1706976640405,-215.63475234,0.00022855,2]
[313229043,1706976640415,-150.0,0.00022859,2]
[313229045,1706976640424,-1073.34339944,0.00022878,2]
[313229047,1706976640434,-240.36283375,0.00022878,2]
[313229049,1706976640443,-17973.69025619,0.00022878,2]
[313229051,1706976640454,-35898.44197249,0.00022878,2]
[313229054,1706976640465,-150.01,0.00022879,2]
[313229056,1706976640473,-2879.37881972,0.00022879,2]
[313229057,1706976640483,-784.0,0.0002288,2]
[313229060,1706976640492,-195362.59798854,0.0002288,2]
[313229062,1706976640510,-1997.2320567,0.0002288,2]
[313229065,1706976640521,-677.48546916,0.0002288,2]
[313229233,1706976642679,-1384.32916392,0.00022629,2]
[313229234,1706976642689,-27383.28,0.000227,2]
[313229235,1706976642699,-500.0,0.00022769,2]
[313229236,1706976642708,-500.0,0.00022769,2]
[313229237,1706976642718,-500.0,0.00022798,2]
[313229238,1706976642727,-500.0,0.00022798,2]
[313229239,1706976642736,-500.0,0.00022799,2]
[313229240,1706976642746,-15124.7382011,0.0002288,2]
[313229241,1706976642755,-151.1680162,0.00022892,2]
[313229242,1706976642766,-152.15550526,0.000229,2]
[313229243,1706976642776,-2500.0,0.000229,2]
[313229244,1706976642785,-631.77887041,0.000229,2]
[313229245,1706976642796,-208.9505522,0.000229,2]
[313229246,1706976642806,-4118.75886016,0.000229,2]
[313229247,1706976642817,-150.0,0.000229,2]
[313229248,1706976642826,-451.03784519,0.000229,2]
[313229249,1706976642835,-180.47727742,0.000229,4]
[313229250,1706976642844,-1924.25475557,0.000229,2]
[313229251,1706976642853,-1000.0,0.000229,8]
[313229252,1706976642862,-834.78182299,0.00022919,2]
[313229253,1706976642872,-500.0,0.00022924,2]
[313229254,1706976642881,-500.0,0.00022924,2]
[313229255,1706976642891,-700.0,0.0002297,2]
[313229256,1706976642902,-800.0,0.0002297,2]
[313229257,1706976642911,-352.52,0.00022976,2]
[313229258,1706976642920,-710.67,0.00022999,2]
[313229259,1706976642930,-728.05,0.00022999,2]
[313229260,1706976642939,-314.71198551,0.00022999,10]
[313229261,1706976642948,-150.0,0.00022999,2]
[313229262,1706976642958,-150.0,0.00022999,2]
[313229263,1706976642968,-405.24244888,0.00023,2]
[313229264,1706976642977,-39607.79219391,0.00023,2]
[313229265,1706976642994,-1078.45,0.00023,2]
[313229274,1706976643423,-519.57342942,0.00022769,2]
[313229276,1706976643432,-500.0,0.00022798,2]
[313229278,1706976643442,-131.57638129,0.00022799,2]
[313229282,1706976643479,-368.42361871,0.00022799,2]
[313229284,1706976643489,-11.73794364,0.00023,2]
[313229290,1706976643536,-619.83843765,0.00023,2]
[313229291,1706976643593,-816.31551849,0.00023,2]
[313229331,1706976693964,205.0,0.00022467,2]
[313229336,1706976796086,151.25,0.00022082,2]
[313229337,1706976909986,23900.0,0.00021917,2]
[313229338,1706976951962,328.0,0.00021779,2]
[313229339,1706976964659,250.0,0.00021779,2]
[313229340,1706976966961,415.44,0.00019861,2]
[313229341,1706976967174,415.44,0.00022125,2]
[313229342,1706977001879,250.0,0.00021918,2]
[313229343,1706977032585,2000.0,0.00021689,2]
[313229344,1706977088665,164.65,0.00021864,2]
[313229347,1706977213972,550.0,0.00022,3]
[313229348,1706977254101,517.4136,0.0002248,2]
[313229351,1706977340437,4233.94,0.0002172,2]
[313229352,1706977369122,177.189,0.0002248,2]
[313229353,1706977373401,151.15436212,0.0002247,2]
[313229354,1706977375433,240.3,0.0002172,2]
[313229356,1706977395321,737.6,0.00021703,2]
[313229357,1706977399656,373.89,0.00019778,2]
[313229358,1706977399862,373.89,0.00022042,2]
[313229361,1706977486725,250.0,0.00021918,2]
[313229362,1706977506627,206.28,0.00021696,2]
[313229363,1706977568239,-1064.42655819,0.00022525,2]
[313229364,1706977568260,-525.56385465,0.00022526,2]
[313229365,1706977568279,-155.0,0.00022527,2]
[313229366,1706977568299,-221.17952722,0.00022527,2]
[313229367,1706977568320,-155.0,0.00022528,2]
[313229368,1706977568842,199.87069569,0.00022524,2]
[313229371,1706977584549,-5000.0,0.00022542,2]
[313229377,1706977600984,-2678.95936425,0.00022542,2]
[313229392,1706977638243,-155.0,0.00022541,2]
[313229393,1706977638264,-101.0,0.00022542,2]
[313229395,1706977690952,151.25,0.00021645,2]
[313229398,1706977825641,336.5,0.00019752,2]
[313229399,1706977825848,336.5,0.00022016,2]
[313229414,1706977831527,-1064.42655819,0.00022528,2]
[313229416,1706977831536,-155.0,0.00022529,2]
[313229418,1706977831545,-155.0,0.00022529,2]
[313229420,1706977831554,-155.0,0.0002253,2]
[313229422,1706977831563,-162.76477441,0.0002253,2]
[313229424,1706977831572,-155.0,0.00022531,2]
[313229426,1706977831581,-243.28708493,0.00022531,2]
[313229428,1706977831592,-155.0,0.00022531,2]
[313229430,1706977831601,-358.76313846,0.00022567,2]
[313229432,1706977831611,-300.0,0.00022569,2]
[313229434,1706977831621,-150.0,0.00022569,2]
[313229436,1706977831631,-2618.6304587,0.00022569,2]
[313229438,1706977831642,-716.54,0.0002257,2]
[313229440,1706977831652,-835.97,0.0002257,2]
[313229441,1706977831660,-725.77,0.0002257,2]
[313229442,1706977831670,-499.99,0.00022571,2]
[313229443,1706977831679,-724.31,0.00022571,2]
[313229444,1706977831689,-319.62,0.00022571,2]
[313229445,1706977831698,-722.13,0.00022571,2]
[313229446,1706977831710,-730.32,0.00022572,2]
[313229447,1706977831719,-716.57,0.00022573,2]
[313229448,1706977831728,-734.6,0.00022575,2]
[313229449,1706977831737,-155.09984264,0.00022576,2]
[313229450,1706977831747,-318.95837671,0.00022576,2]
[313229451,1706977831757,-177.98165687,0.00022576,2]
[313229452,1706977831766,-288.53570252,0.00022576,2]
[313229453,1706977831775,-248.73963354,0.00022576,2]
[313229454,1706977831786,-291.23571618,0.00022576,2]
[313229455,1706977831796,-653.05612415,0.00022576,2]
[313229456,1706977831804,-228.25010525,0.00022576,2]
[313229457,1706977831814,-207.05527583,0.00022576,2]
[313229458,1706977831824,-155.82949393,0.00022576,2]
[313229459,1706977831834,-172.25199491,0.00022576,2]
[313229460,1706977831844,-576.81622647,0.00022576,2]
[313229461,1706977831853,-294.4493513,0.00022576,2]
[313229462,1706977831862,-1050.01826432,0.00022576,2]
[313229464,1706977831872,-194.15234811,0.00022576,2]
[313229466,1706977831881,-1117.6393,0.00022576,2]
[313229468,1706977831890,-158.08966468,0.00022576,2]
[313229469,1706977831900,-526.82445785,0.00022577,2]
[313229471,1706977831909,-308.59850072,0.00022577,2]
[313229473,1706977831918,-157.68028817,0.00022577,2]
[313229475,1706977831927,-526.48716042,0.00022577,2]
[313229477,1706977831937,-155.60915498,0.00022578,2]
[313229479,1706977831946,-203.22221247,0.00022578,2]
[313229481,1706977831955,-291.04164533,0.00022578,2]
[313229483,1706977831965,-250.53011376,0.00022578,2]
[313229485,1706977831974,-577.81805629,0.00022578,2]
[313229487,1706977831983,-155.41660693,0.00022578,2]
[313229489,1706977831992,-1857.7043671,0.00022578,2]
[313229491,1706977832002,-362.66839239,0.00022578,2]
[313229493,1706977832011,-488.7248991,0.00022578,2]
[313229495,1706977832021,-159.81808103,0.00022578,2]
[313229497,1706977832030,-389.54943894,0.00022578,2]
[313229499,1706977832039,-2029.34482346,0.00022578,2]
[313229501,1706977832048,-1146.08153699,0.00022578,2]
[313229503,1706977832057,-440.68345792,0.00022578,2]
[313229505,1706977832066,-8629.53614387,0.00022578,2]
[313229508,1706977832079,-1003.23766428,0.00022578,2]
[313229510,1706977832096,-927.76201707,0.00022578,2]
[313229512,1706977832105,-732.07,0.00022578,2]
[313229514,1706977832115,-6432.00121364,0.0002258,2]
[313229517,1706977832134,-629.86,0.0002258,2]
[313229520,1706977832149,-10533.63762,0.0002258,2]
[313229522,1706977832160,-273.05202077,0.0002258,2]
[313229525,1706977832172,-4254.25,0.0002258,2]
[313229527,1706977832183,-46989.83790058,0.0002258,2]
[313229529,1706977832194,-1042.36206145,0.0002258,2]
[313229532,1706977837594,-358.01197968,0.0002258,2]
[313229533,1706977837606,-462.09903594,0.0002258,2]
[313229534,1706977837763,-332.69995427,0.0002258,2]
[313229535,1706977837819,-3026.55220001,0.0002258,2]
[313229536,1706977837831,-1273.19236374,0.0002258,2]
[313229537,1706977837842,-14770.70711401,0.0002258,2]
[313229738,1706977840177,-2284.82672521,0.0002258,2]
[313229740,1706977840188,-3340.35519795,0.0002258,2]
[313229743,1706977840200,-591.05659528,0.0002258,2]
[313229745,1706977840215,-1974.78793142,0.0002258,2]
[313229809,1706977840823,-477.0484,0.0002258,2]
[313229820,1706977840932,-500.0,0.0002258,2]
[313229833,1706977841042,-453.66168605,0.0002258,2]
[313229835,1706977841051,-210.46668044,0.00022629,2]
[313229837,1706977841063,-4761.21444307,0.00022629,2]
[313229839,1706977841073,-571.54824984,0.00022629,2]
[313229841,1706977841082,-3612.16845685,0.00022697,2]
[313229843,1706977841094,-10293.21286809,0.00022697,2]
[313229845,1706977841106,-6707.82207392,0.00022697,2]
[313229847,1706977841118,-652.20074213,0.00022697,2]
[313229850,1706977841130,-1039.48335625,0.00022697,2]
[313229852,1706977841142,-8850.29350276,0.00022697,2]
[313229854,1706977841151,-431.22,0.00022697,2]
[313229856,1706977841161,-2442.8482,0.00022697,2]
[313229858,1706977841170,-3210.53313328,0.00022697,2]
[313229860,1706977841178,-184.81576064,0.00022697,2]
[313229862,1706977841187,-2586.13940332,0.00022702,2]
[313229939,1706977842606,-4934.58402407,0.00022702,2]
[313229940,1706977842662,-985.3864129,0.00022702,2]
[313229941,1706977842674,-1019.67404361,0.00022702,2]
[313229942,1706977842686,-574.08241182,0.00022702,2]
[313229943,1706977842697,-594.743224,0.00022702,2]
[313229944,1706977842814,-3195.09517621,0.00022702,2]
[313229945,1706977842826,-529.73999,0.00022702,2]
[313229946,1706977842838,-470.02665923,0.00022702,2]
[313229947,1706977842850,-14219.52865484,0.00022702,2]
[313229948,1706977842860,-800.0,0.00022757,2]
[313229949,1706977842869,-155.0,0.00022768,2]
[313229950,1706977842879,-505.08131716,0.00022769,2]
[313229951,1706977842889,-500.0,0.00022769,2]
[313229952,1706977842899,-428.16549067,0.00022769,2]
[313229953,1706977842908,-863.0,0.0002277,2]
[313229954,1706977842918,-500.0,0.00022795,2]
[313229955,1706977842927,-424.1,0.00022796,2]
[313229956,1706977842937,-500.0,0.00022796,2]
[313229957,1706977842946,-500.0,0.00022796,2]
[313229958,1706977842956,-500.0,0.00022796,2]
[313229959,1706977842965,-437.91,0.00022796,2]
[313229960,1706977842974,-500.0,0.00022796,2]
[313229961,1706977842983,-500.0,0.00022796,2]
[313229962,1706977842992,-500.0,0.00022796,2]
[313229963,1706977843002,-500.0,0.00022796,2]
[313229964,1706977843012,-2063.14248567,0.00022796,2]
[313229965,1706977843024,-953.1469,0.00022796,2]
[313229966,1706977843049,-528.8,0.00022795,2]
[313229967,1706977843058,-1539.03061433,0.00022796,2]
[313229968,1706977843068,-118.81364013,0.00022796,2]
[313229969,1706977843079,-381.18635987,0.00022796,2]
[313229970,1706977843089,-500.0,0.00022796,2]
[313229971,1706977843098,-500.0,0.00022796,2]
[313229972,1706977843107,-500.0,0.00022796,2]
[313229973,1706977843116,-640.88,0.00022796,2]
[313229974,1706977843126,-629.74,0.00022796,2]
[313229975,1706977843135,-500.0,0.00022796,2]
[313229976,1706977843145,-500.0,0.00022796,2]
[313229977,1706977843154,-500.0,0.00022796,2]
[313229978,1706977843163,-500.0,0.00022796,2]
[313229979,1706977843173,-500.0,0.00022796,2]
[313229980,1706977843182,-5662.93,0.00022796,2]
[313229981,1706977843191,-500.0,0.00022796,2]
[313229982,1706977843200,-500.0,0.00022796,2]
[313229983,1706977843210,-500.0,0.00022796,2]
[313229984,1706977843219,-500.0,0.00022796,2]
[313229985,1706977843229,-500.0,0.00022796,2]
[313229986,1706977843238,-500.0,0.00022796,2]
[313229987,1706977843248,-500.0,0.00022796,2]
[313229988,1706977843257,-500.0,0.00022796,2]
[313229989,1706977843267,-584.32,0.00022796,2]
[313229990,1706977843276,-500.0,0.00022796,2]
[313229991,1706977843286,-500.0,0.00022796,2]
[313229992,1706977843295,-500.0,0.00022796,2]
[313229993,1706977843304,-500.0,0.00022796,5]
[313229994,1706977843313,-500.0,0.00022796,2]
[313229995,1706977843323,-600.12,0.00022796,2]
[313229996,1706977843332,-500.0,0.00022796,2]
[313229997,1706977843342,-500.0,0.00022796,2]
[313229998,1706977843352,-500.0,0.00022796,2]
[313229999,1706977843361,-642.46,0.00022796,2]
[313230000,1706977843370,-287.88,0.00022796,2]
[313230001,1706977843380,-375.44,0.00022796,2]
[313230002,1706977843390,-258.78,0.00022796,2]
[313230003,1706977843399,-213.45926399,0.00022796,2]
[313230004,1706977843412,-80.77073601,0.00022796,2]
[313230005,1706977843422,-500.0,0.00022796,2]
[313230006,1706977843431,-500.0,0.00022796,2]
[313230007,1706977843441,-500.0,0.00022796,2]
[313230008,1706977843453,-487.55443867,0.00022796,2]
[313230009,1706977843462,-313.21,0.00022796,2]
[313230010,1706977843471,-500.0,0.00022796,2]
[313230011,1706977843481,-500.0,0.00022796,2]
[313230012,1706977843491,-315.76931735,0.00022797,2]
[313230013,1706977843501,-616.80851315,0.00022797,2]
[313230014,1706977843513,-618.22715384,0.00022797,2]
[313230015,1706977843524,-500.0,0.00022797,2]
[313230016,1706977843540,-500.0,0.00022797,2]
[313230017,1706977843555,-500.0,0.00022797,2]
[313230018,1706977843564,-649.81577051,0.00022797,2]
[313230019,1706977843573,-500.0,0.00022797,2]
[313230020,1706977843582,-500.0,0.00022797,2]
[313230021,1706977843591,-500.0,0.00022797,2]
[313230022,1706977843600,-500.0,0.00022797,2]
[313230023,1706977843610,-251.21022646,0.00022797,2]
[313230024,1706977843619,-577.86,0.00022797,2]
[313230025,1706977843627,-334.72603775,0.00022797,2]
[313230026,1706977843636,-500.0,0.00022797,2]
[313230027,1706977843645,-583.71,0.00022797,2]
[313230028,1706977843654,-500.0,0.00022797,2]
[313230029,1706977843663,-500.0,0.00022797,2]
[313230030,1706977843673,-500.0,0.00022797,2]
[313230031,1706977843682,-603.42,0.00022797,2]
[313230032,1706977843691,-500.0,0.00022797,2]
[313230033,1706977843700,-500.0,0.00022797,2]
[313230034,1706977843714,-641.84,0.00022797,2]
[313230035,1706977843723,-500.0,0.00022797,2]
[313230036,1706977843733,-500.0,0.00022797,2]
[313230037,1706977843742,-602.56492336,0.00022797,2]
[313230038,1706977843752,-435.3519954,0.00022797,2]
[313230039,1706977843765,-64.6480046,0.00022797,2]
[313230040,1706977843774,-282.5326255,0.00022797,2]
[313230041,1706977843783,-580.02,0.00022797,2]
[313230042,1706977843792,-496.37993645,0.00022797,2]
[313230043,1706977843802,-500.0,0.00022797,2]
[313230044,1706977843811,-500.0,0.00022797,2]
[313230045,1706977843820,-500.0,0.00022797,2]
[313230046,1706977843830,-500.0,0.00022797,2]
[313230047,1706977843839,-576.97,0.00022797,2]
[313230048,1706977843848,-500.0,0.00022797,2]
[313230049,1706977843857,-408.17496596,0.00022797,2]
[313230050,1706977843867,-500.0,0.00022797,2]
[313230051,1706977843877,-500.0,0.00022797,2]
[313230052,1706977843886,-153.99793269,0.00022797,2]
[313230053,1706977843895,-500.0,0.00022797,2]
[313230054,1706977843904,-500.0,0.00022797,2]
[313230055,1706977843913,-500.0,0.00022797,2]
[313230056,1706977843922,-169.05,0.00022797,2]
[313230057,1706977843931,-500.0,0.00022797,2]
[313230058,1706977843940,-568.06845924,0.00022797,2]
[313230059,1706977843949,-562.41219784,0.00022797,2]
[313230060,1706977843959,-356.83669285,0.00022797,2]
[313230061,1706977843968,-500.0,0.00022797,2]
[313230062,1706977843977,-511.8989894,0.00022797,2]
[313230063,1706977843986,-500.0,0.00022797,2]
[313230064,1706977843995,-500.0,0.00022797,2]
[313230065,1706977844004,-500.0,0.00022797,2]
[313230066,1706977844013,-513.37,0.00022797,2]
[313230067,1706977844023,-500.0,0.00022797,2]
[313230068,1706977844032,-520.11,0.00022797,2]
[313230069,1706977844041,-500.0,0.00022797,2]
[313230070,1706977844050,-393.73812143,0.00022797,2]
[313230071,1706977844059,-500.0,0.00022797,2]
[313230072,1706977844069,-607.11,0.00022797,2]
[313230073,1706977844078,-500.0,0.00022797,2]
[313230074,1706977844088,-500.0,0.00022797,2]
[313230075,1706977844097,-226.29022646,0.00022797,2]
[313230076,1706977844109,-25.47752803,0.00022797,2]
[313230077,1706977844118,-500.0,0.00022797,2]
[313230078,1706977844128,-500.0,0.00022797,2]
[313230079,1706977844137,-500.0,0.00022797,2]
[313230080,1706977844146,-500.0,0.00022797,2]
[313230081,1706977844155,-500.0,0.00022797,2]
[313230082,1706977844165,-500.0,0.00022797,2]
[313230083,1706977844174,-500.0,0.00022797,2]
[313230084,1706977844184,-500.0,0.00022797,2]
[313230085,1706977844194,-500.0,0.00022797,2]
[313230086,1706977844203,-500.0,0.00022797,2]
[313230087,1706977844212,-500.0,0.00022797,2]
[313230088,1706977844221,-500.0,0.00022797,2]
[313230089,1706977844231,-500.0,0.00022797,2]
[313230090,1706977844240,-223.73615991,0.00022797,2]
[313230091,1706977844250,-80.60373499,0.00022797,2]
[313230092,1706977844419,-419.39626501,0.00022797,2]
[313230093,1706977844429,-500.0,0.00022797,2]
[313230094,1706977844440,-500.0,0.00022797,2]
[313230095,1706977844450,-500.0,0.00022797,2]
[313230096,1706977844460,-500.0,0.00022797,2]
[313230097,1706977844470,-500.0,0.00022797,2]
[313230098,1706977844479,-614.95,0.00022797,2]
[313230099,1706977844489,-2053.47,0.00022797,2]
[313230100,1706977844498,-500.0,0.00022797,2]
[313230101,1706977844508,-500.0,0.00022797,2]
[313230102,1706977844517,-523.05,0.00022797,2]
[313230103,1706977844527,-500.0,0.00022797,2]
[313230104,1706977844536,-500.0,0.00022797,2]
[313230105,1706977844545,-500.0,0.00022797,2]
[313230106,1706977844555,-500.0,0.00022797,2]
[313230107,1706977844565,-500.0,0.00022797,2]
[313230108,1706977844574,-500.0,0.00022797,2]
[313230109,1706977844584,-612.53,0.00022797,2]
[313230110,1706977844594,-1695.31,0.00022797,2]
[313230111,1706977844607,-500.0,0.00022797,2]
[313230112,1706977844617,-500.0,0.00022797,2]
[313230113,1706977844627,-590.09108528,0.00022797,2]
[313230114,1706977844636,-500.0,0.00022797,2]
[313230115,1706977844646,-375.17845809,0.00022797,2]
[313230116,1706977844655,-500.0,0.00022797,2]
[313230117,1706977844665,-500.0,0.00022797,2]
[313230118,1706977844675,-500.0,0.00022797,2]
[313230119,1706977844684,-500.0,0.00022797,2]
[313230120,1706977844694,-500.0,0.00022797,2]
[313230121,1706977844705,-500.0,0.00022797,2]
[313230122,1706977844717,-500.0,0.00022797,2]
[313230123,1706977844726,-500.0,0.00022797,2]
[313230124,1706977844737,-500.0,0.00022797,2]
[313230125,1706977844748,-500.0,0.00022797,2]
[313230126,1706977844758,-500.0,0.00022797,2]
[313230127,1706977844768,-500.0,0.00022797,2]
[313230128,1706977844777,-500.0,0.00022797,2]
[313230129,1706977844787,-500.0,0.00022797,2]
[313230130,1706977844797,-500.0,0.00022797,2]
[313230131,1706977844807,-500.0,0.00022797,2]
[313230132,1706977844817,-500.0,0.00022797,2]
[313230133,1706977844826,-540.17,0.00022797,2]
[313230134,1706977844835,-500.0,0.00022797,2]
[313230135,1706977844845,-500.0,0.00022797,2]
[313230136,1706977844856,-500.0,0.00022797,2]
[313230137,1706977844866,-595.75048612,0.00022797,2]
[313230138,1706977844875,-500.0,0.00022797,2]
[313230139,1706977844885,-327.36633273,0.00022797,2]
[313230140,1706977844894,-266.97,0.00022797,2]
[313230141,1706977844904,-500.0,0.00022797,2]
[313230142,1706977844914,-501.06,0.00022797,2]
[313230143,1706977844925,-500.0,0.00022797,2]
[313230144,1706977844936,-500.0,0.00022797,2]
[313230145,1706977844945,-1627.33,0.00022797,2]
[313230146,1706977844955,-500.0,0.00022797,2]
[313230147,1706977844964,-500.0,0.00022797,2]
[313230148,1706977844975,-500.0,0.00022797,2]
[313230149,1706977844986,-500.0,0.00022797,2]
[313230150,1706977844996,-500.0,0.00022797,2]
[313230151,1706977845005,-525.35,0.00022797,2]
[313230152,1706977845015,-319.53642323,0.00022797,2]
[313230153,1706977845025,-500.0,0.00022797,2]
[313230154,1706977845034,-653.43,0.00022797,2]
[313230155,1706977845043,-500.0,0.00022797,2]
[313230156,1706977845053,-442.86,0.00022797,2]
[313230157,1706977845062,-500.0,0.00022797,2]
[313230158,1706977845072,-500.0,0.00022797,2]
[313230159,1706977845081,-694.18,0.00022797,2]
[313230160,1706977845090,-500.0,0.00022797,2]
[313230161,1706977845099,-180.77177103,0.00022797,2]
[313230162,1706977845109,-577.78,0.00022797,2]
[313230163,1706977845119,-386.57,0.00022797,2]
[313230164,1706977845129,-302.81,0.00022797,2]
[313230165,1706977845273,-418.29,0.00022797,2]
[313230166,1706977845283,-242.8,0.00022797,2]
[313230167,1706977845292,-500.0,0.00022797,2]
[313230168,1706977845302,-500.0,0.00022797,2]
[313230169,1706977845311,-269.18,0.00022797,2]
[313230170,1706977845319,-500.0,0.00022797,2]
[313230171,1706977845331,-329.21,0.00022797,2]
[313230172,1706977845341,-602.08,0.00022797,2]
[313230173,1706977845350,-500.0,0.00022797,2]
[313230174,1706977845360,-221.86,0.00022797,2]
[313230175,1706977845369,-287.6,0.00022797,2]
[313230176,1706977845378,-178.84,0.00022797,2]
[313230177,1706977845387,-500.0,0.00022797,5]
[313230178,1706977845396,-500.0,0.00022797,2]
[313230179,1706977845406,-416.73,0.00022797,2]
[313230180,1706977845415,-500.0,0.00022797,2]
[313230181,1706977845424,-500.0,0.00022797,2]
[313230182,1706977845433,-508.58,0.00022797,2]
[313230183,1706977845443,-500.0,0.00022797,2]
[313230184,1706977845453,-500.0,0.00022797,2]
[313230185,1706977845462,-500.0,0.00022797,2]
[313230186,1706977845472,-500.0,0.00022797,2]
[313230187,1706977845481,-366.57,0.00022797,2]
[313230189,1706977845490,-259.64,0.00022797,2]
[313230191,1706977845499,-500.0,0.00022797,2]
[313230193,1706977845508,-500.0,0.00022797,2]
[313230195,1706977845518,-500.0,0.00022797,2]
[313230197,1706977845527,-500.0,0.00022797,2]
[313230198,1706977845536,-500.0,0.00022797,2]
[313230199,1706977845545,-500.0,0.00022797,2]
[313230200,1706977845554,-500.0,0.00022798,2]
[313230201,1706977845563,-256.38,0.00022798,2]
[313230202,1706977845573,-349.42,0.00022798,2]
[313230203,1706977845583,-478.74,0.00022798,2]
[313230204,1706977845593,-467.32754048,0.00022798,2]
[313230205,1706977845602,-500.0,0.00022798,2]
[313230206,1706977845611,-300.0,0.000228,8]
[313230207,1706977845621,-207.0,0.00022879,2]
[313230208,1706977845630,-189.6731,0.00022898,2]
[313230209,1706977845639,-717.6807302,0.000229,2]
[313230210,1706977845648,-7773.5097,0.000229,2]
[313230211,1706977845658,-161.06655702,0.000229,2]
[313230212,1706977845667,-152.37611297,0.000229,2]
[313230213,1706977845677,-534.57581738,0.000229,2]
[313230214,1706977845687,-252.47,0.000229,2]
[313230215,1706977845696,-75025.93,0.000229,2]
[313230216,1706977845707,-700.0,0.000229,8]
[313230217,1706977845720,-400.0,0.0002297,2]
[313230218,1706977845730,-400.0,0.0002297,2]
[313230219,1706977845739,-181.42236999,0.00022989,2]
[313230220,1706977845751,-3354.66951514,0.00022998,2]
[313230221,1706977845762,-485.07452678,0.00022998,2]
[313230222,1706977845773,-323.55866386,0.00022998,2]
[313230223,1706977845782,-263.71245191,0.00022998,2]
[313230224,1706977845795,-551.86446131,0.00022998,2]
[313230225,1706977845805,-500.0,0.00022998,2]
[313230226,1706977845815,-500.0,0.00022998,2]
[313230227,1706977845826,-536.17930379,0.00022998,2]
[313230228,1706977845836,-500.0,0.00022998,2]
[313230229,1706977845845,-500.0,0.00022998,2]
[313230230,1706977845855,-534.21239823,0.00022998,2]
[313230231,1706977845865,-500.0,0.00022998,2]